[Event "Titled Tuesday Blitz July 13 2021"]
[White "Prraneeth Vuppala"]
[Black "Vasquez Schroeder, Rodrigo"]
[WhiteFideId "46622373"]
[BlackFideId "3400042"]
[WhiteElo "1759"]
[BlackElo "2572"]
[Result "1-0"]
[Round "02"]
[TimeControl "180+1"]
[Date "2021.07.13"]
[WhiteClock "0:00:26"]
[BlackClock "0:00:14"]

1. e4 {[%clk 0:03:00]}  e5 {[%clk 0:02:58]} 2. Nf3 {[%clk 0:03:00]}  Nc6 {[%clk 0:02:58]} 3. Bc4 {[%clk 0:03:00]}  Bc5 {[%clk 0:02:57]} 4. c3 {[%clk 0:03:00]}  Nf6 {[%clk 0:02:57]} 5. d4 {[%clk 0:03:01]}  exd4 {[%clk 0:02:57]} 6. e5 {[%clk 0:03:01]}  d5 {[%clk 0:02:57]} 7. Bb5 {[%clk 0:03:02]}  Ne4 {[%clk 0:02:56]} 8. cxd4 {[%clk 0:03:02]}  Bb6 {[%clk 0:02:56]} 9. Nc3 {[%clk 0:03:02]}  Nxc3 {[%clk 0:02:29]} 10. bxc3 {[%clk 0:03:01]}  O-O {[%clk 0:02:29]} 11. O-O {[%clk 0:02:46]}  Bg4 {[%clk 0:02:28]} 12. h3 {[%clk 0:02:46]}  Bh5 {[%clk 0:02:28]} 13. Be2 {[%clk 0:02:24]}  f6 {[%clk 0:02:19]} 14. Ba3 {[%clk 0:02:08]}  Re8 {[%clk 0:02:15]} 15. Re1 {[%clk 0:01:59]}  fxe5 {[%clk 0:01:52]} 16. Nxe5 {[%clk 0:01:58]}  Bxe2 {[%clk 0:01:51]} 17. Qxe2 {[%clk 0:01:52]}  Nxe5 {[%clk 0:01:32]} 18. dxe5 {[%clk 0:01:52]}  Qh4 {[%clk 0:01:31]} 19. e6 {[%clk 0:01:29]}  Qf6 {[%clk 0:01:19]} 20. Rad1 {[%clk 0:01:22]}  c6 {[%clk 0:01:19]} 21. Rd3 {[%clk 0:00:52]}  Qg6 {[%clk 0:01:08]} 22. Rf3 {[%clk 0:00:48]}  c5 {[%clk 0:01:04]} 23. e7 {[%clk 0:00:45]}  Rac8 {[%clk 0:00:56]} 24. Qe5 {[%clk 0:00:42]}  Qc6 {[%clk 0:00:50]} 25. Qf5 {[%clk 0:00:41]}  h6 {[%clk 0:00:41]} 26. Qf7+ {[%clk 0:00:41]}  Kh8 {[%clk 0:00:41]} 27. Re6 {[%clk 0:00:36]}  Qd7 {[%clk 0:00:32]} 28. Rff6 {[%clk 0:00:26]}  Rxe7 {[%clk 0:00:17]} 29. Rxh6+ {[%clk 0:00:25]}  gxh6 {[%clk 0:00:14]} 30. Rxh6# {[%clk 0:00:26]} 1-0


[Site "https://www.chess.com"]

[Event "Titled Tuesday Blitz July 13 2021"]
[White "Rodriguez, Santiago"]
[Black "Sellitti, Federico"]
[WhiteFideId "3000591"]
[BlackFideId "821829"]
[WhiteElo "2256"]
[BlackElo "2617"]
[Result "1-0"]
[Round "02"]
[TimeControl "180+1"]
[Date "2021.07.13"]
[WhiteClock "0:00:54"]
[BlackClock "0:00:19"]

1. d4 {[%clk 0:03:00]}  d5 {[%clk 0:02:59]} 2. Bf4 {[%clk 0:03:00]}  c5 {[%clk 0:02:58]} 3. e3 {[%clk 0:03:00]}  cxd4 {[%clk 0:02:58]} 4. exd4 {[%clk 0:03:00]}  Nc6 {[%clk 0:02:58]} 5. c3 {[%clk 0:03:00]}  Nf6 {[%clk 0:02:59]} 6. Bd3 {[%clk 0:03:00]}  Bg4 {[%clk 0:02:58]} 7. Qb3 {[%clk 0:03:00]}  Qb6 {[%clk 0:02:52]} 8. Qxb6 {[%clk 0:02:51]}  axb6 {[%clk 0:02:53]} 9. Nd2 {[%clk 0:02:36]}  e6 {[%clk 0:02:50]} 10. Ngf3 {[%clk 0:02:33]}  Be7 {[%clk 0:02:23]} 11. h3 {[%clk 0:02:33]}  Bh5 {[%clk 0:02:22]} 12. O-O {[%clk 0:02:33]}  Bg6 {[%clk 0:02:23]} 13. Bb5 {[%clk 0:02:31]}  O-O {[%clk 0:02:16]} 14. Rfe1 {[%clk 0:02:30]}  Ra5 {[%clk 0:02:13]} 15. a4 {[%clk 0:02:27]}  Raa8 {[%clk 0:02:08]} 16. Ne5 {[%clk 0:02:15]}  Rac8 {[%clk 0:02:00]} 17. Bg5 {[%clk 0:02:05]}  Na5 {[%clk 0:01:43]} 18. Bxf6 {[%clk 0:01:50]}  Bxf6 {[%clk 0:01:19]} 19. Nd7 {[%clk 0:01:50]}  Nc4 {[%clk 0:01:19]} 20. Nxc4 {[%clk 0:01:46]}  dxc4 {[%clk 0:01:20]} 21. Nxf8 {[%clk 0:01:46]}  Kxf8 {[%clk 0:01:21]} 22. a5 {[%clk 0:01:39]}  bxa5 {[%clk 0:00:59]} 23. Rxa5 {[%clk 0:01:36]}  Ke7 {[%clk 0:00:59]} 24. Ra7 {[%clk 0:01:28]}  Rc7 {[%clk 0:00:59]} 25. Ba6 {[%clk 0:01:19]}  Kd6 {[%clk 0:00:59]} 26. Rxb7 {[%clk 0:01:19]}  Rxb7 {[%clk 0:00:38]} 27. Bxb7 {[%clk 0:01:19]}  e5 {[%clk 0:00:39]} 28. dxe5+ {[%clk 0:01:15]}  Bxe5 {[%clk 0:00:40]} 29. Be4 {[%clk 0:01:14]}  f5 {[%clk 0:00:39]} 30. Rd1+ {[%clk 0:01:11]}  Ke7 {[%clk 0:00:27]} 31. Bd5 {[%clk 0:01:06]}  Bf7 {[%clk 0:00:16]} 32. Bxf7 {[%clk 0:01:01]}  Kxf7 {[%clk 0:00:17]} 33. Rd5 {[%clk 0:00:59]}  Ke6 {[%clk 0:00:15]} 34. Rc5 {[%clk 0:00:59]}  g5 {[%clk 0:00:15]} 35. Rxc4 {[%clk 0:00:59]}  f4 {[%clk 0:00:15]} 36. f3 {[%clk 0:00:58]}  Kf5 {[%clk 0:00:16]} 37. Rc5 {[%clk 0:00:58]}  h5 {[%clk 0:00:17]} 38. Rxe5+ {[%clk 0:00:57]}  Kxe5 {[%clk 0:00:16]} 39. Kf2 {[%clk 0:00:58]}  Kd5 {[%clk 0:00:17]} 40. Ke2 {[%clk 0:00:58]}  Kc4 {[%clk 0:00:17]} 41. Kd2 {[%clk 0:00:58]}  h4 {[%clk 0:00:16]} 42. Kc2 {[%clk 0:00:57]}  Kc5 {[%clk 0:00:16]} 43. Kd3 {[%clk 0:00:57]}  Kd5 {[%clk 0:00:16]} 44. b4 {[%clk 0:00:57]}  Ke5 {[%clk 0:00:16]} 45. c4 {[%clk 0:00:56]}  g4 {[%clk 0:00:17]} 46. hxg4 {[%clk 0:00:55]}  Kd6 {[%clk 0:00:16]} 47. Ke4 {[%clk 0:00:55]}  Kc6 {[%clk 0:00:17]} 48. Kxf4 {[%clk 0:00:55]}  Kb6 {[%clk 0:00:18]} 49. g5 {[%clk 0:00:54]}  h3 {[%clk 0:00:19]} 50. gxh3 {[%clk 0:00:54]} 1-0


[Site "https://www.chess.com"]

[Event "Titled Tuesday Blitz July 13 2021"]
[White "Rottenwohrer Suarez, Juan"]
[Black "Sonis, Francesco"]
[WhiteFideId "32068182"]
[BlackFideId "895733"]
[WhiteElo "2158"]
[BlackElo "2373"]
[Result "1-0"]
[Round "02"]
[TimeControl "180+1"]
[Date "2021.07.13"]
[WhiteClock "0:00:11"]
[BlackClock "0:01:38"]

1. d4 {[%clk 0:03:00]}  d5 {[%clk 0:02:59]} 2. c4 {[%clk 0:03:00]}  c6 {[%clk 0:02:58]} 3. Nf3 {[%clk 0:03:00]}  Nf6 {[%clk 0:02:57]} 4. Nc3 {[%clk 0:02:59]}  e6 {[%clk 0:02:56]} 5. Bg5 {[%clk 0:02:56]}  h6 {[%clk 0:02:54]} 6. Bxf6 {[%clk 0:02:55]}  Qxf6 {[%clk 0:02:55]} 7. e3 {[%clk 0:02:56]}  g6 {[%clk 0:02:54]} 8. Bd3 {[%clk 0:02:54]}  Bg7 {[%clk 0:02:54]} 9. O-O {[%clk 0:02:53]}  Nd7 {[%clk 0:02:51]} 10. e4 {[%clk 0:02:50]}  dxe4 {[%clk 0:02:47]} 11. Nxe4 {[%clk 0:02:51]}  Qe7 {[%clk 0:02:48]} 12. Re1 {[%clk 0:02:50]}  O-O {[%clk 0:02:47]} 13. Qc2 {[%clk 0:02:44]}  b6 {[%clk 0:02:45]} 14. Rad1 {[%clk 0:02:37]}  Bb7 {[%clk 0:02:45]} 15. c5 {[%clk 0:02:33]}  Rad8 {[%clk 0:02:43]} 16. b4 {[%clk 0:02:23]}  Nf6 {[%clk 0:02:40]} 17. Nd6 {[%clk 0:02:22]}  Rxd6 {[%clk 0:02:39]} 18. cxd6 {[%clk 0:02:21]}  Qxd6 {[%clk 0:02:40]} 19. a3 {[%clk 0:02:18]}  Ra8 {[%clk 0:02:38]} 20. Ne5 {[%clk 0:02:08]}  a5 {[%clk 0:02:35]} 21. bxa5 {[%clk 0:02:03]}  b5 {[%clk 0:02:31]} 22. Qc5 {[%clk 0:01:14]}  Qxc5 {[%clk 0:02:28]} 23. dxc5 {[%clk 0:01:13]}  Rxa5 {[%clk 0:02:27]} 24. Be4 {[%clk 0:01:03]}  Nxe4 {[%clk 0:02:20]} 25. Rxe4 {[%clk 0:01:00]}  Rxa3 {[%clk 0:02:20]} 26. f4 {[%clk 0:00:53]}  Bf8 {[%clk 0:02:18]} 27. Rd8 {[%clk 0:00:47]}  Ra8 {[%clk 0:02:16]} 28. Rxa8 {[%clk 0:00:40]}  Bxa8 {[%clk 0:02:17]} 29. Nd7 {[%clk 0:00:40]}  Be7 {[%clk 0:02:15]} 30. Re2 {[%clk 0:00:38]}  Bb7 {[%clk 0:02:15]} 31. Ra2 {[%clk 0:00:37]}  Kg7 {[%clk 0:02:15]} 32. Kf1 {[%clk 0:00:31]}  Bc8 {[%clk 0:02:14]} 33. Nb6 {[%clk 0:00:30]}  Bxc5 {[%clk 0:02:03]} 34. Nxc8 {[%clk 0:00:28]}  b4 {[%clk 0:02:04]} 35. Rc2 {[%clk 0:00:26]}  Bd4 {[%clk 0:02:00]} 36. Rxc6 {[%clk 0:00:20]}  b3 {[%clk 0:02:00]} 37. Rc1 {[%clk 0:00:19]}  Kf6 {[%clk 0:01:58]} 38. Nd6 {[%clk 0:00:19]}  Ke7 {[%clk 0:01:58]} 39. Nc4 {[%clk 0:00:18]}  Kf6 {[%clk 0:01:54]} 40. Rb1 {[%clk 0:00:18]}  Kf5 {[%clk 0:01:50]} 41. Rxb3 {[%clk 0:00:17]}  Kxf4 {[%clk 0:01:51]} 42. Rf3+ {[%clk 0:00:18]}  Ke4 {[%clk 0:01:51]} 43. Rxf7 {[%clk 0:00:18]}  Kd5 {[%clk 0:01:51]} 44. Nd2 {[%clk 0:00:18]}  e5 {[%clk 0:01:51]} 45. Nf3 {[%clk 0:00:17]}  Bc3 {[%clk 0:01:51]} 46. Rh7 {[%clk 0:00:15]}  h5 {[%clk 0:01:46]} 47. Rh6 {[%clk 0:00:13]}  e4 {[%clk 0:01:46]} 48. Nh4 {[%clk 0:00:11]}  g5 {[%clk 0:01:45]} 49. Rxh5 {[%clk 0:00:11]}  Bf6 {[%clk 0:01:43]} 50. g3 {[%clk 0:00:11]}  Kd4 {[%clk 0:01:43]} 51. Ng2 {[%clk 0:00:11]}  Kd3 {[%clk 0:01:43]} 52. Rh6 {[%clk 0:00:10]}  Bb2 {[%clk 0:01:43]} 53. Rd6+ {[%clk 0:00:09]}  Kc4 {[%clk 0:01:43]} 54. h4 {[%clk 0:00:09]}  gxh4 {[%clk 0:01:42]} 55. gxh4 {[%clk 0:00:10]}  Kc5 {[%clk 0:01:42]} 56. Rd7 {[%clk 0:00:09]}  Kc6 {[%clk 0:01:42]} 57. Rd1 {[%clk 0:00:09]}  Bg7 {[%clk 0:01:39]} 58. Ke2 {[%clk 0:00:09]}  Bh6 {[%clk 0:01:40]} 59. h5 {[%clk 0:00:10]}  Kc5 {[%clk 0:01:39]} 60. Ne3 {[%clk 0:00:10]}  Bf4 {[%clk 0:01:39]} 61. Nf5 {[%clk 0:00:11]}  Kc6 {[%clk 0:01:38]} 62. h6 {[%clk 0:00:11]} 1-0


[Site "https://www.chess.com"]

[Event "Titled Tuesday Blitz July 13 2021"]
[White "Sadovsky, Artem"]
[Black "Abdusattorov, Nodirbek"]
[WhiteFideId "4155840"]
[BlackFideId "14204118"]
[WhiteElo "2442"]
[BlackElo "2662"]
[Result "1/2-1/2"]
[Round "02"]
[TimeControl "180+1"]
[Date "2021.07.13"]
[WhiteClock "0:00:28"]
[BlackClock "0:00:56"]

1. Nf3 {[%clk 0:02:58]}  Nf6 {[%clk 0:02:59]} 2. g3 {[%clk 0:02:58]}  c5 {[%clk 0:02:59]} 3. Bg2 {[%clk 0:02:59]}  Nc6 {[%clk 0:03:00]} 4. O-O {[%clk 0:02:59]}  e5 {[%clk 0:03:00]} 5. d3 {[%clk 0:02:58]}  d5 {[%clk 0:03:00]} 6. e4 {[%clk 0:02:58]}  d4 {[%clk 0:02:58]} 7. a4 {[%clk 0:02:58]}  Be7 {[%clk 0:02:51]} 8. Na3 {[%clk 0:02:58]}  O-O {[%clk 0:02:51]} 9. Nc4 {[%clk 0:02:59]}  Qc7 {[%clk 0:02:48]} 10. Nh4 {[%clk 0:02:48]}  Be6 {[%clk 0:02:45]} 11. b3 {[%clk 0:02:43]}  a6 {[%clk 0:02:43]} 12. f4 {[%clk 0:02:32]}  b5 {[%clk 0:02:43]} 13. Nxe5 {[%clk 0:02:31]}  Nxe5 {[%clk 0:02:43]} 14. fxe5 {[%clk 0:02:32]}  Ng4 {[%clk 0:02:43]} 15. Nf5 {[%clk 0:02:30]}  Nxe5 {[%clk 0:02:43]} 16. Bf4 {[%clk 0:02:22]}  f6 {[%clk 0:02:29]} 17. Bxe5 {[%clk 0:02:11]}  fxe5 {[%clk 0:02:27]} 18. axb5 {[%clk 0:02:07]}  axb5 {[%clk 0:02:12]} 19. Rxa8 {[%clk 0:02:08]}  Rxa8 {[%clk 0:02:13]} 20. Qg4 {[%clk 0:02:08]}  Bxf5 {[%clk 0:02:13]} 21. exf5 {[%clk 0:01:26]}  Rf8 {[%clk 0:02:13]} 22. Bd5+ {[%clk 0:01:26]}  Kh8 {[%clk 0:02:14]} 23. Ra1 {[%clk 0:01:19]}  Qd8 {[%clk 0:01:53]} 24. Be4 {[%clk 0:01:17]}  Qd7 {[%clk 0:01:50]} 25. Ra6 {[%clk 0:01:15]}  g6 {[%clk 0:01:42]} 26. Re6 {[%clk 0:01:08]}  Rf6 {[%clk 0:01:27]} 27. Rxe5 {[%clk 0:00:50]}  Kg7 {[%clk 0:01:10]} 28. Re6 {[%clk 0:00:44]}  Rxe6 {[%clk 0:01:10]} 29. fxe6 {[%clk 0:00:44]}  Qd6 {[%clk 0:01:11]} 30. Kg2 {[%clk 0:00:42]}  Qe5 {[%clk 0:01:11]} 31. h4 {[%clk 0:00:38]}  Bd6 {[%clk 0:01:04]} 32. h5 {[%clk 0:00:34]}  g5 {[%clk 0:00:58]} 33. h6+ {[%clk 0:00:31]}  Kf6 {[%clk 0:00:43]} 34. Bxh7 {[%clk 0:00:25]}  Qxe6 {[%clk 0:00:39]} 35. Qxe6+ {[%clk 0:00:23]}  Kxe6 {[%clk 0:00:40]} 36. Be4 {[%clk 0:00:14]}  g4 {[%clk 0:00:36]} 37. h7 {[%clk 0:00:14]}  Be5 {[%clk 0:00:36]} 38. Bc6 {[%clk 0:00:12]}  b4 {[%clk 0:00:36]} 39. Bb7 {[%clk 0:00:12]}  Kf5 {[%clk 0:00:35]} 40. Bc8+ {[%clk 0:00:12]}  Kg5 {[%clk 0:00:36]} 41. Be6 {[%clk 0:00:12]}  Bf6 {[%clk 0:00:36]} 42. Bd7 {[%clk 0:00:10]}  Be5 {[%clk 0:00:37]} 43. Kf2 {[%clk 0:00:10]}  Kh6 {[%clk 0:00:35]} 44. Bxg4 {[%clk 0:00:10]}  Kxh7 {[%clk 0:00:35]} 45. Kf3 {[%clk 0:00:11]}  Kg6 {[%clk 0:00:36]} 46. Ke4 {[%clk 0:00:10]}  Bxg3 {[%clk 0:00:36]} 47. Kd5 {[%clk 0:00:11]}  Be1 {[%clk 0:00:37]} 48. Kxc5 {[%clk 0:00:09]}  Kg5 {[%clk 0:00:37]} 49. Be6 {[%clk 0:00:09]}  Bc3 {[%clk 0:00:37]} 50. Kc4 {[%clk 0:00:08]}  Kf4 {[%clk 0:00:37]} 51. Bd7 {[%clk 0:00:09]}  Ke5 {[%clk 0:00:38]} 52. Bb5 {[%clk 0:00:10]}  Kd6 {[%clk 0:00:37]} 53. Ba4 {[%clk 0:00:11]}  Ke6 {[%clk 0:00:36]} 54. Bb5 {[%clk 0:00:10]}  Ke5 {[%clk 0:00:36]} 55. Ba4 {[%clk 0:00:11]}  Kf4 {[%clk 0:00:37]} 56. Bb5 {[%clk 0:00:11]}  Ke3 {[%clk 0:00:38]} 57. Ba4 {[%clk 0:00:12]}  Kd2 {[%clk 0:00:39]} 58. Bb5 {[%clk 0:00:13]}  Kc1 {[%clk 0:00:40]} 59. Ba4 {[%clk 0:00:14]}  Kxc2 {[%clk 0:00:41]} 60. Bb5 {[%clk 0:00:15]}  Kb2 {[%clk 0:00:42]} 61. Ba4 {[%clk 0:00:16]}  Ka2 {[%clk 0:00:43]} 62. Bb5 {[%clk 0:00:16]}  Ka3 {[%clk 0:00:43]} 63. Ba4 {[%clk 0:00:17]}  Kb2 {[%clk 0:00:44]} 64. Bb5 {[%clk 0:00:18]}  Kc2 {[%clk 0:00:45]} 65. Ba4 {[%clk 0:00:19]}  Kd2 {[%clk 0:00:46]} 66. Bb5 {[%clk 0:00:20]}  Bb2 {[%clk 0:00:47]} 67. Ba4 {[%clk 0:00:21]}  Ba3 {[%clk 0:00:48]} 68. Bb5 {[%clk 0:00:22]}  Bb2 {[%clk 0:00:49]} 69. Ba4 {[%clk 0:00:23]}  Bc3 {[%clk 0:00:50]} 70. Bb5 {[%clk 0:00:24]}  Ke3 {[%clk 0:00:50]} 71. Ba4 {[%clk 0:00:23]}  Kf4 {[%clk 0:00:51]} 72. Bb5 {[%clk 0:00:24]}  Ke5 {[%clk 0:00:52]} 73. Ba4 {[%clk 0:00:24]}  Kd6 {[%clk 0:00:53]} 74. Bb5 {[%clk 0:00:25]}  Kc7 {[%clk 0:00:53]} 75. Ba4 {[%clk 0:00:25]}  Kb6 {[%clk 0:00:54]} 76. Bb5 {[%clk 0:00:26]}  Bd2 {[%clk 0:00:54]} 77. Ba4 {[%clk 0:00:27]}  Bc3 {[%clk 0:00:55]} 78. Bb5 {[%clk 0:00:27]}  Bd2 {[%clk 0:00:55]} 79. Ba4 {[%clk 0:00:28]}  Bc3 {[%clk 0:00:56]} 1/2-1/2


[Site "https://www.chess.com"]

[Event "Titled Tuesday Blitz July 13 2021"]
[White "Shevchenko, Kirill"]
[Black "Ambartsumova, Karina"]
[WhiteFideId "14129574"]
[BlackFideId "4166299"]
[WhiteElo "2569"]
[BlackElo "2262"]
[Result "1-0"]
[Round "02"]
[TimeControl "180+1"]
[Date "2021.07.13"]
[WhiteClock "0:00:39"]
[BlackClock "0:00:06"]

1. d3 {[%clk 0:03:00]}  d5 {[%clk 0:02:55]} 2. Nd2 {[%clk 0:03:00]}  Nf6 {[%clk 0:02:54]} 3. e4 {[%clk 0:03:00]}  e5 {[%clk 0:02:54]} 4. Ngf3 {[%clk 0:02:57]}  Nc6 {[%clk 0:02:53]} 5. exd5 {[%clk 0:02:54]}  Nxd5 {[%clk 0:02:53]} 6. g3 {[%clk 0:02:55]}  Be7 {[%clk 0:02:49]} 7. Bg2 {[%clk 0:02:55]}  O-O {[%clk 0:02:49]} 8. O-O {[%clk 0:02:55]}  Re8 {[%clk 0:02:48]} 9. Re1 {[%clk 0:02:55]}  Bf8 {[%clk 0:02:47]} 10. c3 {[%clk 0:02:49]}  Nb6 {[%clk 0:02:36]} 11. Qc2 {[%clk 0:02:15]}  Bf5 {[%clk 0:02:28]} 12. Ne4 {[%clk 0:02:14]}  h6 {[%clk 0:02:28]} 13. a4 {[%clk 0:02:12]}  a5 {[%clk 0:02:28]} 14. Be3 {[%clk 0:02:07]}  Nd5 {[%clk 0:02:14]} 15. Bd2 {[%clk 0:01:59]}  Qd7 {[%clk 0:02:09]} 16. Qb3 {[%clk 0:01:53]}  Be6 {[%clk 0:01:44]} 17. Qb5 {[%clk 0:01:41]}  b6 {[%clk 0:01:17]} 18. Rad1 {[%clk 0:01:26]}  f6 {[%clk 0:00:40]} 19. Nh4 {[%clk 0:01:26]}  Rad8 {[%clk 0:00:28]} 20. Bxh6 {[%clk 0:01:13]}  gxh6 {[%clk 0:00:20]} 21. c4 {[%clk 0:01:13]}  Nce7 {[%clk 0:00:14]} 22. cxd5 {[%clk 0:00:57]}  Nxd5 {[%clk 0:00:14]} 23. Qxd5 {[%clk 0:00:53]}  Qxd5 {[%clk 0:00:09]} 24. Nxf6+ {[%clk 0:00:54]}  Kf7 {[%clk 0:00:10]} 25. Bxd5 {[%clk 0:00:53]}  Kxf6 {[%clk 0:00:10]} 26. Bc6 {[%clk 0:00:48]}  Re7 {[%clk 0:00:10]} 27. Nf3 {[%clk 0:00:49]}  Rd6 {[%clk 0:00:09]} 28. Bb5 {[%clk 0:00:45]}  Bb3 {[%clk 0:00:09]} 29. Nd2 {[%clk 0:00:43]}  Bxd1 {[%clk 0:00:08]} 30. Ne4+ {[%clk 0:00:43]}  Kg7 {[%clk 0:00:09]} 31. Nxd6 {[%clk 0:00:44]}  cxd6 {[%clk 0:00:10]} 32. Rxd1 {[%clk 0:00:45]}  Rc7 {[%clk 0:00:10]} 33. Bc4 {[%clk 0:00:45]}  Be7 {[%clk 0:00:10]} 34. Kg2 {[%clk 0:00:44]}  Bf6 {[%clk 0:00:11]} 35. Kf3 {[%clk 0:00:44]}  Rc5 {[%clk 0:00:11]} 36. Ke4 {[%clk 0:00:45]}  Kf8 {[%clk 0:00:11]} 37. Ra1 {[%clk 0:00:43]}  Ke7 {[%clk 0:00:11]} 38. h4 {[%clk 0:00:43]}  Rc7 {[%clk 0:00:11]} 39. Ra3 {[%clk 0:00:42]}  Rc5 {[%clk 0:00:11]} 40. Rb3 {[%clk 0:00:42]}  Rc6 {[%clk 0:00:10]} 41. Rb5 {[%clk 0:00:41]}  Kd8 {[%clk 0:00:09]} 42. Kf5 {[%clk 0:00:40]}  Be7 {[%clk 0:00:09]} 43. Rd5 {[%clk 0:00:34]}  Kc7 {[%clk 0:00:09]} 44. Kg6 {[%clk 0:00:35]}  Bf8 {[%clk 0:00:08]} 45. Kf7 {[%clk 0:00:34]}  e4 {[%clk 0:00:06]} 46. Kxf8 {[%clk 0:00:34]}  exd3 {[%clk 0:00:05]} 47. Bxd3 {[%clk 0:00:35]}  Rc1 {[%clk 0:00:05]} 48. g4 {[%clk 0:00:35]}  Rg1 {[%clk 0:00:04]} 49. g5 {[%clk 0:00:35]}  hxg5 {[%clk 0:00:05]} 50. hxg5 {[%clk 0:00:36]}  Kc6 {[%clk 0:00:06]} 51. Rf5 {[%clk 0:00:36]}  d5 {[%clk 0:00:06]} 52. Rf6+ {[%clk 0:00:36]}  Kc5 {[%clk 0:00:06]} 53. g6 {[%clk 0:00:37]}  Kd4 {[%clk 0:00:07]} 54. Bf5 {[%clk 0:00:37]}  Ke5 {[%clk 0:00:07]} 55. Rf7 {[%clk 0:00:38]}  Rg5 {[%clk 0:00:06]} 56. g7 {[%clk 0:00:38]}  d4 {[%clk 0:00:06]} 57. g8=Q {[%clk 0:00:39]} 1-0


[Site "https://www.chess.com"]

[Event "Titled Tuesday Blitz July 13 2021"]
[White "Shevelev, Dmitri"]
[Black "Borsuk, Konstantin"]
[WhiteFideId "2802627"]
[BlackFideId "14113406"]
[WhiteElo "2262"]
[BlackElo "2363"]
[Result "1-0"]
[Round "02"]
[TimeControl "180+1"]
[Date "2021.07.13"]
[WhiteClock "0:01:47"]
[BlackClock "0:02:26"]

1. d4 {[%clk 0:03:00]}  Nf6 {[%clk 0:02:59]} 2. Nf3 {[%clk 0:03:01]}  e6 {[%clk 0:03:00]} 3. Nc3 {[%clk 0:03:02]}  Bb4 {[%clk 0:02:59]} 4. Bg5 {[%clk 0:03:02]}  h6 {[%clk 0:02:58]} 5. Bxf6 {[%clk 0:03:01]}  Qxf6 {[%clk 0:02:58]} 6. Qd2 {[%clk 0:03:01]}  c5 {[%clk 0:02:56]} 7. a3 {[%clk 0:03:01]}  Bxc3 {[%clk 0:02:53]} 8. Qxc3 {[%clk 0:03:02]}  b6 {[%clk 0:02:52]} 9. e4 {[%clk 0:02:57]}  cxd4 {[%clk 0:02:48]} 10. Qxc8+ {[%clk 0:02:55]}  Qd8 {[%clk 0:02:45]} 11. Qxd8+ {[%clk 0:02:51]}  Kxd8 {[%clk 0:02:45]} 12. Nxd4 {[%clk 0:02:52]}  Ke7 {[%clk 0:02:45]} 13. O-O-O {[%clk 0:02:51]}  a6 {[%clk 0:02:45]} 14. f4 {[%clk 0:02:51]}  d6 {[%clk 0:02:45]} 15. Be2 {[%clk 0:02:50]}  Ra7 {[%clk 0:02:45]} 16. Bf3 {[%clk 0:02:50]}  Rc7 {[%clk 0:02:46]} 17. Rd2 {[%clk 0:02:50]}  Nd7 {[%clk 0:02:45]} 18. Rhd1 {[%clk 0:02:49]}  g6 {[%clk 0:02:44]} 19. Nb3 {[%clk 0:02:37]}  Rc6 {[%clk 0:02:42]} 20. e5 {[%clk 0:02:34]}  d5 {[%clk 0:02:42]} 21. Nd4 {[%clk 0:02:34]}  Rc7 {[%clk 0:02:40]} 22. c3 {[%clk 0:02:34]}  g5 {[%clk 0:02:37]} 23. g3 {[%clk 0:02:26]}  Rg8 {[%clk 0:02:37]} 24. Kb1 {[%clk 0:02:25]}  b5 {[%clk 0:02:36]} 25. Re1 {[%clk 0:02:25]}  Nb6 {[%clk 0:02:36]} 26. f5 {[%clk 0:02:21]}  g4 {[%clk 0:02:36]} 27. Be2 {[%clk 0:02:13]}  Rg5 {[%clk 0:02:35]} 28. Bd3 {[%clk 0:02:10]}  Nd7 {[%clk 0:02:33]} 29. Rf2 {[%clk 0:02:08]}  h5 {[%clk 0:02:28]} 30. Bc2 {[%clk 0:02:06]}  Rc8 {[%clk 0:02:27]} 31. a4 {[%clk 0:02:00]}  b4 {[%clk 0:02:26]} 32. cxb4 {[%clk 0:01:59]}  Rc4 {[%clk 0:02:26]} 33. Rd2 {[%clk 0:01:48]}  Rxb4 {[%clk 0:02:26]} 34. Nc6+ {[%clk 0:01:47]} 1-0


[Site "https://www.chess.com"]

[Event "Titled Tuesday Blitz July 13 2021"]
[White "Silich, Yahor"]
[Black "Samsonkin, Artiom"]
[WhiteFideId "13513656"]
[BlackFideId "13503111"]
[WhiteElo "2142"]
[BlackElo "2513"]
[Result "0-1"]
[Round "02"]
[TimeControl "180+1"]
[Date "2021.07.13"]
[WhiteClock "0:00:41"]
[BlackClock "0:00:39"]

1. e4 {[%clk 0:03:00]}  c5 {[%clk 0:02:58]} 2. Nf3 {[%clk 0:03:00]}  d6 {[%clk 0:02:58]} 3. Bb5+ {[%clk 0:03:00]}  Nd7 {[%clk 0:02:57]} 4. d4 {[%clk 0:02:59]}  cxd4 {[%clk 0:02:57]} 5. Qxd4 {[%clk 0:03:00]}  a6 {[%clk 0:02:57]} 6. Be2 {[%clk 0:03:00]}  Ngf6 {[%clk 0:02:53]} 7. O-O {[%clk 0:03:00]}  g6 {[%clk 0:02:43]} 8. e5 {[%clk 0:02:51]}  dxe5 {[%clk 0:02:39]} 9. Nxe5 {[%clk 0:02:52]}  Bg7 {[%clk 0:02:28]} 10. Bf4 {[%clk 0:01:50]}  O-O {[%clk 0:02:22]} 11. Nc3 {[%clk 0:01:48]}  Nxe5 {[%clk 0:02:11]} 12. Bxe5 {[%clk 0:01:48]}  Bf5 {[%clk 0:02:07]} 13. Bf3 {[%clk 0:01:42]}  Qxd4 {[%clk 0:01:42]} 14. Bxd4 {[%clk 0:01:42]}  Rad8 {[%clk 0:01:40]} 15. Bb6 {[%clk 0:01:40]}  Rd2 {[%clk 0:01:32]} 16. Bxb7 {[%clk 0:01:29]}  Rb8 {[%clk 0:01:28]} 17. Be3 {[%clk 0:01:29]}  Rxc2 {[%clk 0:01:28]} 18. Bxa6 {[%clk 0:01:27]}  Rbxb2 {[%clk 0:01:22]} 19. Rac1 {[%clk 0:01:22]}  Ng4 {[%clk 0:01:10]} 20. Nd5 {[%clk 0:01:10]}  Be4 {[%clk 0:00:54]} 21. h3 {[%clk 0:00:50]}  Bxd5 {[%clk 0:00:41]} 22. hxg4 {[%clk 0:00:49]}  Rxa2 {[%clk 0:00:41]} 23. Rxc2 {[%clk 0:00:46]}  Rxc2 {[%clk 0:00:42]} 24. Rd1 {[%clk 0:00:47]}  e6 {[%clk 0:00:42]} 25. Bb7 {[%clk 0:00:41]}  Bxb7 {[%clk 0:00:38]} 26. Rd8+ {[%clk 0:00:40]}  Bf8 {[%clk 0:00:39]} 27. Bh6 {[%clk 0:00:41]}  Rc8 {[%clk 0:00:39]} 0-1


[Site "https://www.chess.com"]